fUSD/lending_fUSD_20260626
["ID","MTS","AMOUNT","RATE_DAILY","PERIOD"]
[426469379,1782426639000,-168.85718495,0.00023649,2]
[426469399,1782426639000,-3688.53783928,0.000238,2]
[426469378,1782426639000,-157.01345415,0.00023649,2]
[426469350,1782426639000,-765.0,0.00023,2]
[426469377,1782426639000,-196.36931851,0.00023649,2]
[426469410,1782426639000,-256.0,0.00024,2]
[426469356,1782426639000,-251.46184804,0.0002343,30]
[426469349,1782426639000,-260.0,0.00023,2]
[426469353,1782426639000,-165.34,0.00023332,2]
[426469355,1782426639000,-1967.2,0.0002343,7]
[426469352,1782426639000,-168.234652,0.00023182,14]
[426469351,1782426639000,-220.205878,0.00023182,14]
[426469354,1782426639000,-265.713336,0.00023425,14]
[426469357,1782426639000,-7974.30573301,0.00023646,2]
[426469360,1782426639000,-159.80214409,0.00023648,2]
[426469359,1782426639000,-150.00345718,0.00023648,2]
[426469362,1782426639000,-182.90246154,0.00023649,2]
[426469361,1782426639000,-172.19660628,0.00023648,2]
[426469363,1782426639000,-265.07641826,0.00023649,2]
[426469370,1782426639000,-202.74114551,0.00023649,2]
[426469368,1782426639000,-324.98325262,0.00023649,2]
[426469366,1782426639000,-289.90911311,0.00023649,2]
[426469367,1782426639000,-233.42191902,0.00023649,2]
[426469365,1782426639000,-172.83926785,0.00023649,2]
[426469364,1782426639000,-157.85801191,0.00023649,2]
[426469369,1782426639000,-190.1575046,0.00023649,2]
[426469372,1782426639000,-177.07512497,0.00023649,2]
[426469371,1782426639000,-178.26332024,0.00023649,2]
[426469374,1782426639000,-152.6866486,0.00023649,2]
[426469373,1782426639000,-191.33239919,0.00023649,2]
[426469376,1782426639000,-167.99417719,0.00023649,2]
[426469375,1782426639000,-157.46039437,0.00023649,2]
[426469380,1782426639000,-178.25068758,0.00023649,2]
[426469413,1782426639000,-370.0,0.00024,2]
[426469358,1782426639000,-166.2874386,0.00023648,2]
[426469415,1782426639000,-551.0,0.00024,2]
[426469448,1782426639000,-315.71602381,0.00024906,2]
[426469447,1782426639000,-530.15283652,0.00024906,2]
[426469450,1782426639000,-579.81822621,0.00024906,2]
[426469452,1782426639000,-649.96650525,0.00024906,2]
[426469456,1782426639000,-229.36482636,0.00024906,2]
[426469455,1782426639000,-356.52664049,0.00024906,2]
[426469457,1782426639000,-354.15024994,0.00024906,2]
[426469453,1782426639000,-380.31500921,0.00024906,2]
[426469454,1782426639000,-405.48229102,0.00024906,2]
[426469451,1782426639000,-466.84383804,0.00024906,2]
[426469460,1782426639000,-314.92078874,0.00024906,2]
[426469461,1782426639000,-335.98835437,0.00024906,2]
[426469459,1782426639000,-305.3732972,0.00024906,2]
[426469449,1782426639000,-345.67853571,0.00024906,2]
[426469458,1782426639000,-382.66479838,0.00024906,2]
[426469463,1782426639000,-337.71436989,0.00024906,2]
[426469464,1782426639000,-356.50137516,0.00024906,2]
[426469466,1782426639000,-328.96694681,0.00024906,2]
[426469467,1782426639000,-392.73863701,0.00024906,2]
[426469471,1782426639000,-329.0633418,0.00024913,2]
[426469472,1782426639000,-402.79582719,0.00024913,2]
[426469475,1782426639000,-386.087452,0.00024913,2]
[426469468,1782426639000,-344.10715012,0.00024913,2]
[426469470,1782426639000,-434.2438502,0.00024913,2]
[426469465,1782426639000,-312.28151093,0.00024906,2]
[426469469,1782426639000,-311.42254211,0.00024913,2]
[426469473,1782426639000,-416.24994036,0.00024913,2]
[426469414,1782426639000,-154.0,0.00024,2]
[426469462,1782426639000,-314.0269083,0.00024906,2]
[426469445,1782426639000,-240.48004253,0.00024906,2]
[426469474,1782426639000,-401.0042899,0.00024913,2]
[426469446,1782426639000,-365.80492308,0.00024906,2]
[426469444,1782426639000,-344.39321255,0.00024906,2]
[426469423,1782426639000,-1320.4846587,0.000243,2]
[426469416,1782426639000,-615.0,0.00024,2]
[426469418,1782426639000,-765.0,0.00024,2]
[426469421,1782426639000,-434.91921096,0.000241,2]
[426469422,1782426639000,-1558.89778403,0.000241,2]
[426469424,1782426639000,-3688.53783928,0.000243,2]
[426469417,1782426639000,-260.0,0.00024,2]
[426469420,1782426639000,-3688.53783928,0.000241,2]
[426469425,1782426639000,-434.91921096,0.000243,2]
[426469428,1782426639000,-1320.4846587,0.000246,2]
[426469426,1782426639000,-1558.89778403,0.000243,2]
[426469432,1782426639000,-160.02799572,0.00024657,2]
[426469434,1782426639000,-755.47,0.00024658,2]
[426469419,1782426639000,-1320.4846587,0.000241,2]
[426469430,1782426639000,-434.91921096,0.000246,2]
[426469429,1782426639000,-3688.53783928,0.000246,2]
[426469441,1782426639000,-332.57487721,0.00024906,2]
[426469439,1782426639000,-1558.89778403,0.000248,2]
[426469440,1782426639000,-208.63313888,0.00024902,2]
[426469437,1782426639000,-3688.53783928,0.000248,2]
[426469443,1782426639000,-319.60428818,0.00024906,2]
[426469436,1782426639000,-1320.4846587,0.000248,2]
[426469431,1782426639000,-1558.89778403,0.000246,2]
[426469438,1782426639000,-434.91921096,0.000248,2]
[426469442,1782426639000,-300.00691436,0.00024906,2]
[426469433,1782426639000,-183.52,0.00024658,2]
[426469427,1782426639000,-191.53036183,0.000245,4]
[426469435,1782426639000,-1000.0,0.00024658,2]
[426469504,1782426640000,-266.0,0.00025,2]
[426469515,1782426640000,-617.0,0.00025,2]
[426469509,1782426640000,-151.0,0.00025,2]
[426469505,1782426640000,-318.0,0.00025,2]
[426469507,1782426640000,-374.0,0.00025,2]
[426469511,1782426640000,-151.0,0.00025,2]
[426469512,1782426640000,-151.0,0.00025,2]
[426469508,1782426640000,-164.0,0.00025,2]
[426469513,1782426640000,-151.0,0.00025,2]
[426469520,1782426640000,-151.0,0.000251,2]
[426469510,1782426640000,-566.0,0.00025,2]
[426469523,1782426640000,-151.0,0.000253,2]
[426469521,1782426640000,-165.34,0.00025111,2]
[426469524,1782426640000,-256.654647,0.000253,2]
[426469514,1782426640000,-151.0,0.00025,2]
[426469516,1782426640000,-274.62790106,0.00025,2]
[426469519,1782426640000,-151.0,0.000251,2]
[426469522,1782426640000,-3688.53783928,0.000253,2]
[426469517,1782426640000,-784.82821955,0.00025,2]
[426469526,1782426640000,-151.0,0.000253,2]
[426469525,1782426640000,-151.0,0.000253,2]
[426469527,1782426640000,-7974.30573301,0.00025443,2]
[426469528,1782426640000,-441.64524972,0.00025445,2]
[426469503,1782426640000,-613.0,0.00025,2]
[426469518,1782426640000,-3688.53783928,0.000251,2]
[426469506,1782426640000,-1244.1539236,0.00025,2]
[426469490,1782426640000,-500.0,0.00024999,2]
[426469501,1782426640000,-347.64,0.00025,2]
[426469529,1782426640000,-3688.53783928,0.000256,2]
[426469476,1782426640000,-243.87991588,0.00024913,2]
[426469486,1782426640000,-500.0,0.00024999,2]
[426469478,1782426640000,-500.0,0.00024999,2]
[426469484,1782426640000,-240.90752117,0.00024999,2]
[426469480,1782426640000,-500.0,0.00024999,2]
[426469482,1782426640000,-500.0,0.00024999,2]
[426469477,1782426640000,-337.66406466,0.00024913,2]
[426469485,1782426640000,-500.0,0.00024999,2]
[426469481,1782426640000,-355.54994635,0.00024999,2]
[426469479,1782426640000,-173.93554341,0.00024999,2]
[426469483,1782426640000,-195.4146397,0.00024999,2]
[426469487,1782426640000,-500.0,0.00024999,2]
[426469488,1782426640000,-500.0,0.00024999,2]
[426469489,1782426640000,-156.69978282,0.00024999,2]
[426469492,1782426640000,-601.27096912,0.00024999,2]
[426469493,1782426640000,-500.0,0.00024999,2]
[426469491,1782426640000,-500.0,0.00024999,2]
[426469496,1782426640000,-500.0,0.00024999,2]
[426469495,1782426640000,-500.0,0.00024999,2]
[426469498,1782426640000,-50000.0,0.00025,2]
[426469494,1782426640000,-500.0,0.00024999,2]
[426469497,1782426640000,-399.0,0.00025,2]
[426469499,1782426640000,-50000.0,0.00025,2]
[426469500,1782426640000,-50000.0,0.00025,2]
[426469502,1782426640000,-275.82291175,0.00025,2]
[426469538,1782426640000,-516.58981883,0.00025744,2]
[426469530,1782426640000,-452.88633865,0.00025695,2]
[426469531,1782426640000,-151.0,0.00025744,2]
[426469563,1782426640000,-534.78996073,0.00025745,2]
[426469564,1782426640000,-162.8137474,0.00025745,2]
[426469561,1782426640000,-570.47251381,0.00025745,2]
[426469567,1782426640000,-243.97885196,0.00025745,2]
[426469566,1782426640000,-242.39797539,0.00025745,2]
[426469569,1782426640000,-573.99719756,0.00025745,2]
[426469575,1782426640000,-471.04036245,0.00025745,2]
[426469574,1782426640000,-589.10795552,0.00025745,2]
[426469571,1782426640000,-219.42425046,0.00025745,2]
[426469572,1782426640000,-472.3811831,0.00025745,2]
[426469570,1782426640000,-458.05994581,0.00025745,2]
[426469562,1782426640000,-220.82223993,0.00025745,2]
[426469573,1782426640000,-503.98253156,0.00025745,2]
[426469577,1782426640000,-534.75206274,0.00025745,2]
[426469579,1782426640000,-245.45203645,0.00025745,2]
[426469580,1782426640000,-468.42226639,0.00025745,2]
[426469581,1782426640000,-493.45042022,0.00025745,2]
[426469578,1782426640000,-506.57155484,0.00025745,2]
[426469583,1782426640000,-204.00418421,0.00025751,2]
[426469584,1782426640000,-467.13381316,0.00025751,2]
[426469582,1782426640000,-516.16072519,0.00025751,2]
[426469585,1782426640000,-651.3657753,0.00025751,2]
[426469586,1782426640000,-493.59501269,0.00025751,2]
[426469535,1782426640000,-450.01037154,0.00025744,2]
[426469576,1782426640000,-228.92472085,0.00025745,2]
[426469555,1782426640000,-197.26449725,0.00025745,2]
[426469568,1782426640000,-531.22537491,0.00025745,2]
[426469558,1782426640000,-224.92096243,0.00025745,2]
[426469532,1782426640000,-151.0,0.00025744,2]
[426469559,1782426640000,-237.39399729,0.00025745,2]
[426469533,1782426640000,-498.86231581,0.00025744,2]
[426469534,1782426640000,-204.31903166,0.00025744,2]
[426469537,1782426640000,-182.36092906,0.00025744,2]
[426469536,1782426640000,-479.40643227,0.00025744,2]
[426469540,1782426640000,-480.96008505,0.00025744,2]
[426469539,1782426640000,-209.99992073,0.00025744,2]
[426469541,1782426640000,-155.76491572,0.00025745,2]
[426469544,1782426640000,-247.39069773,0.00025745,2]
[426469545,1782426640000,-203.2992283,0.00025745,2]
[426469546,1782426640000,-245.99710636,0.00025745,2]
[426469543,1782426640000,-215.08436668,0.00025745,2]
[426469542,1782426640000,-548.70738462,0.00025745,2]
[426469565,1782426640000,-458.72965273,0.00025745,2]
[426469557,1782426640000,-974.94975787,0.00025745,2]
[426469547,1782426640000,-795.22925477,0.00025745,2]
[426469560,1782426640000,-608.22343652,0.00025745,2]
[426469556,1782426640000,-700.26575706,0.00025745,2]
[426469553,1782426640000,-239.39168449,0.00025745,2]
[426469554,1782426640000,-869.72733932,0.00025745,2]
[426469548,1782426640000,-200.68787274,0.00025745,2]
[426469549,1782426640000,-185.25841479,0.00025745,2]
[426469552,1782426640000,-518.51780356,0.00025745,2]
[426469550,1782426640000,-206.7260795,0.00025745,2]
[426469551,1782426640000,-473.57403572,0.00025745,2]
[426469628,1782426641000,-430.16873336,0.00026304,2]
[426469626,1782426641000,-311.52983143,0.00026304,2]
[426469625,1782426641000,-721.44012758,0.00026303,2]
[426469629,1782426641000,-494.78139545,0.00026304,2]
[426469622,1782426641000,-688.78642511,0.00026303,2]
[426469615,1782426641000,-184.1702866,0.00026303,2]
[426469616,1782426641000,-600.01382872,0.00026303,2]
[426469619,1782426641000,-429.76400259,0.00026303,2]
[426469618,1782426641000,-639.20857636,0.00026303,2]
[426469627,1782426641000,-731.60984615,0.00026304,2]
[426469620,1782426641000,-364.72185813,0.00026303,2]
[426469621,1782426641000,-183.39144829,0.00026303,2]
[426469637,1782426641000,-159.76145998,0.00026304,2]
[426469624,1782426641000,-157.81993866,0.00026303,2]
[426469623,1782426641000,-282.13967237,0.00026303,2]
[426469631,1782426641000,-386.57456617,0.00026304,2]
[426469642,1782426641000,-312.02464361,0.00026304,2]
[426469641,1782426641000,-691.35707142,0.00026304,2]
[426469632,1782426641000,-491.99421271,0.00026304,2]
[426469633,1782426641000,-1060.30567303,0.00026304,2]
[426469635,1782426641000,-401.37574548,0.00026304,2]
[426469636,1782426641000,-370.51682958,0.00026304,2]
[426469639,1782426641000,-631.43204763,0.00026304,2]
[426469638,1782426641000,-413.45215901,0.00026304,2]
[426469617,1782426641000,-350.18248441,0.00026303,2]
[426469630,1782426641000,-185.5123728,0.00026304,2]
[426469610,1782426641000,-500.0,0.00026221,2]
[426469587,1782426641000,-205.90000372,0.00025751,2]
[426469614,1782426641000,-160.52614116,0.00026303,2]
[426469634,1782426641000,-234.16705774,0.00026304,2]
[426469589,1782426641000,-604.19374078,0.00025751,2]
[426469588,1782426641000,-233.68651285,0.00025751,2]
[426469593,1782426641000,-579.131178,0.00025751,2]
[426469592,1782426641000,-601.50643486,0.00025751,2]
[426469591,1782426641000,-203.07370782,0.00025751,2]
[426469594,1782426641000,-487.75983176,0.00025751,2]
[426469595,1782426641000,-506.49609698,0.00025751,2]
[426469590,1782426641000,-624.37491053,0.00025751,2]
[426469597,1782426641000,-346.87,0.00025786,2]
[426469596,1782426641000,-23666.32,0.00025786,2]
[426469598,1782426641000,-151.0,0.00025786,2]
[426469599,1782426641000,-3688.53783928,0.000258,2]
[426469605,1782426641000,-151.0,0.00026,2]
[426469601,1782426641000,-503.19,0.0002599,2]
[426469608,1782426641000,-3688.53783928,0.000261,2]
[426469603,1782426641000,-7310.79508902,0.00026,2]
[426469604,1782426641000,-275.44,0.00026,7]
[426469600,1782426641000,-800.0,0.000259,9]
[426469602,1782426641000,-50000.0,0.00026,2]
[426469607,1782426641000,-150.0,0.00026089,5]
[426469606,1782426641000,-151.0,0.00026,2]
[426469609,1782426641000,-452.88633865,0.00026196,2]
[426469612,1782426641000,-665.14975442,0.00026303,2]
[426469611,1782426641000,-7310.79508902,0.00026222,2]
[426469613,1782426641000,-222.47990996,0.00026303,2]
[426469640,1782426641000,-395.9835908,0.00026304,2]
[426469695,1782426641000,-411.80000744,0.0002631,2]
[426469644,1782426641000,-419.72336408,0.00026304,2]
[426469668,1782426641000,-436.33831095,0.00026304,2]
[426469673,1782426641000,-765.32959675,0.00026304,2]
[426469674,1782426641000,-443.49372262,0.00026304,2]
[426469676,1782426641000,-438.84850092,0.00026304,2]
[426469679,1782426641000,-629.84157747,0.00026304,2]
[426469680,1782426641000,-671.97670874,0.00026304,2]
[426469682,1782426641000,-785.47727403,0.00026304,2]
[426469685,1782426641000,-713.00275031,0.00026304,2]
[426469683,1782426641000,-457.8494417,0.00026304,2]
[426469686,1782426641000,-624.56302186,0.00026304,2]
[426469681,1782426641000,-628.0538166,0.00026304,2]
[426469687,1782426641000,-490.90407291,0.00026304,2]
[426469690,1782426641000,-622.84508422,0.0002631,2]
[426469689,1782426641000,-688.21430025,0.0002631,2]
[426469688,1782426641000,-657.93389362,0.00026304,2]
[426469691,1782426641000,-868.48770041,0.0002631,2]
[426469692,1782426641000,-382.84692595,0.0002631,2]
[426469694,1782426641000,-427.69505154,0.0002631,2]
[426469693,1782426641000,-658.12668359,0.0002631,2]
[426469697,1782426641000,-419.13387339,0.0002631,2]
[426469700,1782426641000,-406.14741563,0.0002631,2]
[426469696,1782426641000,-406.65205699,0.0002631,2]
[426469698,1782426641000,-805.59165438,0.0002631,2]
[426469699,1782426641000,-832.49988071,0.0002631,2]
[426469643,1782426641000,-478.78336899,0.00026304,2]
[426469675,1782426641000,-610.74659441,0.00026304,2]
[426469671,1782426641000,-212.33070292,0.00026304,2]
[426469684,1782426641000,-675.42873979,0.00026304,2]
[426469677,1782426641000,-429.90475419,0.00026304,2]
[426469670,1782426641000,-708.30049988,0.00026304,2]
[426469646,1782426641000,-1159.63645243,0.00026304,2]
[426469647,1782426641000,-394.52899451,0.00026304,2]
[426469648,1782426641000,-301.14518982,0.00026304,2]
[426469653,1782426641000,-449.84192485,0.00026304,2]
[426469649,1782426641000,-352.23777355,0.00026304,2]
[426469652,1782426641000,-1299.9330105,0.00026304,2]
[426469650,1782426641000,-427.69382323,0.00026304,2]
[426469651,1782426641000,-933.68767608,0.00026304,2]
[426469654,1782426641000,-404.22666804,0.00026304,2]
[426469655,1782426641000,-474.78799457,0.00026304,2]
[426469656,1782426641000,-810.96458203,0.00026304,2]
[426469657,1782426641000,-760.63001841,0.00026304,2]
[426469645,1782426641000,-165.78920298,0.00026304,2]
[426469665,1782426641000,-419.99984147,0.00026304,2]
[426469658,1782426641000,-713.05328097,0.00026304,2]
[426469678,1782426641000,-392.47097785,0.00026304,2]
[426469669,1782426641000,-487.95770393,0.00026304,2]
[426469667,1782426641000,-484.79595078,0.00026304,2]
[426469661,1782426641000,-325.62749479,0.00026304,2]
[426469659,1782426641000,-157.31506445,0.00026304,2]
[426469672,1782426641000,-160.30085569,0.00026304,2]
[426469663,1782426641000,-688.09447909,0.00026304,2]
[426469662,1782426641000,-229.90086396,0.00026304,2]
[426469660,1782426641000,-408.05532179,0.00026304,2]
[426469664,1782426641000,-304.29606457,0.00026304,2]
[426469666,1782426641000,-193.54528885,0.00026304,2]
[426469742,1782426642000,-693.181969,0.00026806,2]
[426469740,1782426642000,-693.181969,0.00026806,2]
[426469745,1782426642000,-154.684808,0.00026806,2]
[426469731,1782426642000,-151.0,0.00026806,2]
[426469741,1782426642000,-693.181969,0.00026806,2]
[426469732,1782426642000,-151.0,0.00026806,2]
[426469734,1782426642000,-151.0,0.00026806,2]
[426469733,1782426642000,-151.0,0.00026806,2]
[426469736,1782426642000,-151.0,0.00026806,2]
[426469743,1782426642000,-151.0,0.00026806,2]
[426469739,1782426642000,-693.181969,0.00026806,2]
[426469748,1782426642000,-613.91,0.00026858,7]
[426469758,1782426642000,-914.51230769,0.00026862,2]
[426469753,1782426642000,-180.44,0.00026858,30]
[426469756,1782426642000,-799.01072045,0.00026862,2]
[426469750,1782426642000,-681.11,0.00026858,7]
[426469755,1782426642000,-831.43719302,0.00026862,2]
[426469769,1782426642000,-1013.70572754,0.00026862,2]
[426469768,1782426642000,-1624.91626312,0.00026862,2]
[426469773,1782426642000,-780.70377732,0.00026862,2]
[426469757,1782426642000,-860.98303139,0.00026862,2]
[426469770,1782426642000,-885.37562485,0.00026862,2]
[426469772,1782426642000,-981.84659253,0.00026862,2]
[426469771,1782426642000,-839.97088593,0.00026862,2]
[426469730,1782426642000,-215.967905,0.00026806,2]
[426469746,1782426642000,-622.73,0.00026858,30]
[426469726,1782426642000,-12414.4662154,0.00026806,2]
[426469703,1782426642000,-802.00857981,0.0002631,2]
[426469729,1782426642000,-151.0,0.00026806,2]
[426469701,1782426642000,-441.64447986,0.0002631,2]
[426469762,1782426642000,-864.19633927,0.00026862,2]
[426469713,1782426642000,-456.80455106,0.00026706,2]
[426469711,1782426642000,-503.19,0.00026639,2]
[426469709,1782426642000,-7310.79508902,0.00026444,2]
[426469712,1782426642000,-7310.79508902,0.00026667,2]
[426469702,1782426642000,-371.92863525,0.0002631,2]
[426469707,1782426642000,-675.32812931,0.0002631,2]
[426469708,1782426642000,-408.63806332,0.0002631,2]
[426469704,1782426642000,-772.174904,0.0002631,2]
[426469706,1782426642000,-200.13721741,0.0002631,2]
[426469705,1782426642000,-731.63974764,0.0002631,2]
[426469710,1782426642000,-151.0,0.00026572,2]
[426469715,1782426642000,-1257.32304766,0.00026762,2]
[426469717,1782426642000,-300.0,0.00026805,10]
[426469723,1782426642000,-373581.6211983,0.00026806,2]
[426469714,1782426642000,-213.62907301,0.00026706,2]
[426469716,1782426642000,-208.6918502,0.00026796,2]
[426469722,1782426642000,-1187318.0152854,0.00026806,2]
[426469724,1782426642000,-9916.8366549,0.00026806,2]
[426469718,1782426642000,-666.0,0.00026805,2]
[426469720,1782426642000,-300.0,0.00026805,10]
[426469721,1782426642000,-666.0,0.00026805,2]
[426469719,1782426642000,-300.0,0.00026805,10]
[426469725,1782426642000,-257.616072,0.00026806,2]
[426469727,1782426642000,-188.443308,0.00026806,2]
[426469737,1782426642000,-151.0,0.00026806,2]
[426469728,1782426642000,-151.0,0.00026806,2]
[426469766,1782426642000,-1167.10959511,0.00026862,2]
[426469760,1782426642000,-1325.38209129,0.00026862,2]
[426469774,1782426642000,-822.41736703,0.00026862,2]
[426469809,1782426642000,-151.0,0.00027306,2]
[426469802,1782426642000,-151.0,0.00027,2]
[426469810,1782426642000,-500.0,0.00027306,2]
[426469803,1782426642000,-151.0,0.00027,2]
[426469805,1782426642000,-191.0,0.00027132,5]
[426469812,1782426642000,-8065.49347321,0.00027365,3]
[426469823,1782426642000,-643.94,0.00027381,2]
[426469821,1782426642000,-248.63,0.00027381,2]
[426469822,1782426642000,-151.0,0.00027381,2]
[426469817,1782426642000,-151.0,0.00027381,2]
[426469818,1782426642000,-151.0,0.00027381,2]
[426469813,1782426642000,-15000.0,0.00027365,3]
[426469815,1782426642000,-248.67,0.00027381,2]
[426469811,1782426642000,-7310.79508902,0.00027333,2]
[426469814,1782426642000,-5143.37837899,0.00027365,3]
[426469820,1782426642000,-573.72,0.00027381,2]
[426469819,1782426642000,-152.22,0.00027381,2]
[426469829,1782426642000,-482.48,0.00027394,2]
[426469832,1782426642000,-151.0,0.00027394,2]
[426469831,1782426642000,-573.75,0.00027394,2]
[426469825,1782426642000,-573.69,0.00027381,2]
[426469824,1782426642000,-440.51,0.00027381,2]
[426469826,1782426642000,-185.28,0.00027381,2]
[426469830,1782426642000,-151.0,0.00027394,2]
[426469827,1782426642000,-4200.4084576,0.0002739,2]
[426469828,1782426642000,-8296.73628281,0.0002739,2]
[426469764,1782426642000,-1449.54556554,0.00026862,2]
[426469808,1782426642000,-200.0,0.000273,10]
[426469804,1782426642000,-7310.79508902,0.00027111,2]
[426469816,1782426642000,-151.0,0.00027381,2]
[426469801,1782426642000,-151.0,0.00027,2]
[426469807,1782426642000,-503.19,0.00027289,2]
[426469778,1782426642000,-965.21863,0.00026869,2]
[426469780,1782426642000,-7310.79508902,0.00026889,2]
[426469786,1782426642000,-6084.0,0.00026903,2]
[426469777,1782426642000,-1006.98956797,0.00026869,2]
[426469779,1782426642000,-844.16016164,0.00026869,2]
[426469775,1782426642000,-778.55635527,0.00026869,2]
[426469785,1782426642000,-1230.0,0.00026903,2]
[426469782,1782426642000,-1100.0,0.000269,9]
[426469781,1782426642000,-275.44,0.000269,7]
[426469783,1782426642000,-1361.0,0.00026903,2]
[426469784,1782426642000,-383.0,0.00026903,2]
[426469787,1782426642000,-50000.0,0.00027,2]
[426469797,1782426642000,-693.181969,0.00027,2]
[426469776,1782426642000,-822.65835449,0.00026869,2]
[426469806,1782426642000,-7974.30573301,0.00027239,2]
[426469796,1782426642000,-693.181969,0.00027,2]
[426469799,1782426642000,-151.0,0.00027,2]
[426469800,1782426642000,-151.0,0.00027,2]
[426469798,1782426642000,-693.181969,0.00027,2]
[426469792,1782426642000,-151.0,0.00027,2]
[426469793,1782426642000,-151.0,0.00027,2]
[426469790,1782426642000,-151.0,0.00027,2]
[426469788,1782426642000,-151.0,0.00027,2]
[426469795,1782426642000,-693.181969,0.00027,2]
[426469791,1782426642000,-174.380432,0.00027,2]
[426469789,1782426642000,-151.0,0.00027,2]
[426469794,1782426642000,-151.0,0.00027,2]
[426469869,1782426643000,-825.959217,0.00027397,2]
[426469876,1782426643000,-533.319612,0.00027397,2]
[426469872,1782426643000,-825.959217,0.00027397,2]
[426469871,1782426643000,-825.959217,0.00027397,2]
[426469868,1782426643000,-825.959217,0.00027397,2]
[426469874,1782426643000,-533.319612,0.00027397,2]
[426469870,1782426643000,-825.959217,0.00027397,2]
[426469866,1782426643000,-825.959217,0.00027397,2]
[426469864,1782426643000,-825.959217,0.00027397,2]
[426469865,1782426643000,-825.959217,0.00027397,2]
[426469877,1782426643000,-533.319612,0.00027397,2]
[426469873,1782426643000,-825.959217,0.00027397,2]
[426469867,1782426643000,-825.959217,0.00027397,2]
[426469881,1782426643000,-533.319612,0.00027397,2]
[426469880,1782426643000,-533.319612,0.00027397,2]
[426469886,1782426643000,-3096.22,0.00027397,2]
[426469882,1782426643000,-533.319612,0.00027397,2]
[426469878,1782426643000,-533.319612,0.00027397,2]
[426469879,1782426643000,-533.319612,0.00027397,2]
[426469885,1782426643000,-533.319612,0.00027397,2]
[426469883,1782426643000,-533.319612,0.00027397,2]
[426469884,1782426643000,-533.319612,0.00027397,2]
[426469892,1782426643000,-151.0,0.00027397,2]
[426469889,1782426643000,-151.0,0.00027397,2]
[426469890,1782426643000,-151.0,0.00027397,2]
[426469891,1782426643000,-151.0,0.00027397,2]
[426469900,1782426643000,-300.0,0.00027397,2]
[426469888,1782426643000,-151.0,0.00027397,2]
[426469887,1782426643000,-151.0,0.00027397,2]
[426469862,1782426643000,-530.57,0.00027397,2]
[426469835,1782426643000,-644.42,0.00027394,2]
[426469863,1782426643000,-825.959217,0.00027397,2]
[426469834,1782426643000,-573.72,0.00027394,2]
[426469833,1782426643000,-151.78,0.00027394,2]
[426469837,1782426643000,-151.0,0.00027394,2]
[426469847,1782426643000,-151.49213433,0.00027397,10]
[426469848,1782426643000,-571.783607,0.00027397,2]
[426469839,1782426643000,-151.0,0.00027394,2]
[426469841,1782426643000,-151.0,0.00027394,2]
[426469840,1782426643000,-573.73,0.00027394,2]
[426469836,1782426643000,-151.0,0.00027394,2]
[426469838,1782426643000,-185.24,0.00027394,2]
[426469843,1782426643000,-750.11,0.00027397,2]
[426469842,1782426643000,-151.0,0.00027394,2]
[426469846,1782426643000,-1500.0,0.00027397,2]
[426469875,1782426643000,-533.319612,0.00027397,2]
[426469844,1782426643000,-500.0,0.00027397,2]
[426469849,1782426643000,-571.783607,0.00027397,2]
[426469851,1782426643000,-571.783607,0.00027397,2]
[426469852,1782426643000,-571.783607,0.00027397,2]
[426469853,1782426643000,-571.783607,0.00027397,2]
[426469855,1782426643000,-571.783607,0.00027397,2]
[426469850,1782426643000,-571.783607,0.00027397,2]
[426469857,1782426643000,-571.783607,0.00027397,2]
[426469854,1782426643000,-571.783607,0.00027397,2]
[426469856,1782426643000,-571.783607,0.00027397,2]
[426469861,1782426643000,-825.959217,0.00027397,2]
[426469859,1782426643000,-571.783607,0.00027397,2]
[426469860,1782426643000,-755.47,0.00027397,2]